bitfinex-derivatives/quotes_ETHF0:USTF0_20250417
["timestamp","ask_amount","ask_price","bid_price","bid_amount"]
[1744871436926,1.5943,1607.1,1607.0,0.00933212]
[1744871437735,1.5943,1607.1,1607.0,1.25398212]
[1744871438226,2.83887,1607.1,1607.0,1.25398212]
[1744871438428,2.83887,1607.1,1607.0,0.00933212]
[1744871438831,6.04667,1607.1,1607.0,0.00933212]
[1744871439623,2.83887,1607.1,1607.0,0.00933212]
[1744871440324,6.04667,1607.1,1607.0,0.00933212]
[1744871443326,6.04667,1607.1,1607.0,1.25398212]
[1744871443527,6.04667,1607.1,1607.0,0.00933212]
[1744871444025,2.83887,1607.1,1607.0,0.00933212]
[1744871445332,1.5943,1607.1,1607.0,1.25398212]
[1744871445536,5.70075212,1607.3,1607.0,1.70753212]
[1744871445726,6.05903212,1607.3,1607.2,1.24449]
[1744871446034,4.45633212,1607.3,1607.2,1.24449]
[1744871446423,0.00933212,1607.3,1607.2,1.24449]
[1744871446733,0.00933212,1607.3,1607.2,2.03729]
[1744871449034,1.75913212,1607.3,1607.1,1.6982]
[1744871449237,4.45234,1607.2,1607.0,2.12404212]
[1744871449433,4.45234,1607.2,1607.0,0.00933212]
[1744871449434,2.99437,1607.1,1607.0,0.00933212]
[1744871451637,7.99437,1607.1,1607.0,0.00933212]
[1744871451832,2.99437,1607.1,1607.0,0.00933212]
[1744871457544,3.79567,1607.1,1607.0,0.00933212]
[1744871458039,3.79567,1607.1,1606.8,1.6628]
[1744871458040,1.24479,1606.9,1606.7,2.05206]
[1744871458240,8.82959,1606.9,1606.7,2.05206]
[1744871458442,1.24496,1606.6,1606.4,1.24508]
[1744871458640,1.24494,1606.7,1606.5,1.7507]
[1744871458841,2.86884,1606.7,1606.5,2.99573]
[1744871459041,2.86884,1606.7,1606.6,1.7507]
[1744871459543,6.07664,1606.7,1606.6,1.7507]
[1744871459738,2.86884,1606.7,1606.6,1.7507]
[1744871459938,6.07664,1606.7,1606.6,1.7507]
[1744871460851,4.063,1607.0,1606.6,1.7507]
[1744871461150,4.377,1606.9,1606.8,1.2448]
[1744871461333,4.377,1607.2,1607.1,1.24457]
[1744871461845,0.00933212,1607.3,1607.2,1.24449]
[1744871462047,0.00933212,1607.3,1607.2,2.96059]
[1744871462448,0.00933212,1607.3,1607.2,7.96059]
[1744871462643,0.00933212,1607.3,1607.2,9.57169]
[1744871463148,0.00933212,1607.3,1607.2,12.77949]
[1744871463450,3.2078,1608.0,1607.8,1.24402]
[1744871463648,4.45171,1608.0,1607.7,1.24406]
[1744871463944,1.24419,1607.6,1607.5,1.5943]
[1744871464151,4.45199,1607.6,1607.5,1.5943]
[1744871464547,1.24419,1607.6,1607.5,1.5943]
[1744871464747,2.88889212,1607.7,1607.5,1.5943]
[1744871465154,1.24419,1607.6,1607.5,1.5943]
[1744871465351,2.87959,1607.6,1607.5,1.5943]
[1744871465849,2.87959,1607.6,1607.4,1.25366212]
[1744871465850,1.24426,1607.5,1607.4,0.00933212]
[1744871466153,1.6354,1607.5,1607.4,0.00933212]
[1744871466354,1.6354,1607.5,1607.4,1.61123212]
[1744871466748,1.6354,1607.5,1607.4,2.85557212]
[1744871467053,2.87966,1607.5,1607.4,1.61123212]
[1744871467646,2.87966,1607.5,1607.4,0.00933212]
[1744871467853,3.75676,1607.5,1607.4,0.00933212]
[1744871468053,4.54976,1607.5,1607.4,0.00933212]
[1744871468251,8.92576,1607.5,1607.4,0.00933212]
[1744871468441,13.92576,1607.5,1607.4,0.00933212]
[1744871468950,8.92576,1607.5,1607.4,0.00933212]
[1744871470051,0.00933212,1607.7,1607.6,1.24419]
[1744871470649,0.00933212,1607.7,1607.6,2.88439]
[1744871473760,1.25344212,1607.7,1607.6,1.6402]
[1744871473961,2.93214212,1607.7,1607.6,1.6402]
[1744871474168,0.00933212,1607.7,1607.6,2.88439]
[1744871474662,0.00933212,1607.7,1607.6,1.6402]
[1744871474961,2.93214212,1607.7,1607.6,1.6402]
[1744871475465,1.68803212,1607.7,1607.6,2.88439]
[1744871476470,0.00933212,1607.7,1607.6,2.88439]
[1744871479167,0.00933212,1607.7,1607.6,1.6402]
[1744871479361,1.25344212,1607.7,1607.6,1.6402]
[1744871479569,6.10914212,1607.7,1607.6,1.6402]
[1744871480066,3.69304212,1607.7,1607.6,1.6402]
[1744871480569,1.24419,1607.6,1607.4,2.10884212]
[1744871480770,6.09989,1607.6,1607.4,2.10884212]
[1744871480970,6.09989,1607.6,1607.4,3.84544212]
[1744871481167,2.88476,1607.5,1607.4,2.60113212]
[1744871481371,2.88476,1607.5,1607.4,0.00933212]
[1744871481574,8.06536,1607.5,1607.4,0.00933212]
[1744871481869,13.06536,1607.5,1607.4,0.00933212]
[1744871482170,8.06536,1607.5,1607.4,0.00933212]
[1744871490371,1.24457,1607.1,1607.0,5.856]
[1744871490567,1.24457,1607.1,1607.0,1.7325]
[1744871490768,8.80835,1607.2,1607.0,2.97715]
[1744871491076,1.24457,1607.1,1606.9,2.88868]
[1744871491275,2.92651,1607.1,1606.9,4.6212]
[1744871492676,1.24465,1607.0,1606.9,3.3765]
[1744871492881,1.6819,1607.0,1606.9,4.62123]
[1744871493080,1.6819,1607.0,1606.9,3.3765]
[1744871493273,1.6819,1607.0,1606.9,4.62123]
[1744871493474,9.61163,1607.2,1607.0,1.24462]
[1744871493676,8.15313,1607.2,1607.0,2.89372]
[1744871493976,6.9086,1607.2,1607.0,1.6491]
[1744871494178,1.24457,1607.1,1607.0,1.6491]
[1744871494377,2.99387,1607.1,1607.0,1.6491]
[1744871495175,6.20167,1607.1,1607.0,1.6491]
[1744871496982,1.24465,1607.0,1606.9,1.644]
[1744871497182,2.84165,1607.0,1606.8,1.25409212]
[1744871497676,1.597,1606.9,1606.8,1.25409212]
[1744871497984,2.84173,1606.9,1606.8,1.63983212]
[1744871498174,1.597,1606.9,1606.8,2.88463212]
[1744871499581,1.24463,1607.1,1606.9,1.2447]
[1744871499783,1.24465,1607.0,1606.9,1.2447]
[1744871500175,1.24473,1606.9,1606.8,2.88460212]
[1744871500374,1.24473,1606.9,1606.8,1.63983212]
[1744871500676,2.88903,1606.9,1606.8,1.25413212]
[1744871500981,2.88903,1606.9,1606.8,1.66973212]
[1744871501280,2.88903,1606.9,1606.8,2.91453212]
[1744871502081,4.59973,1606.9,1606.8,2.91453212]
[1744871502381,3.355,1606.9,1606.8,2.91453212]
[1744871502881,1.24463,1607.1,1606.9,1.24468]
[1744871503081,2.91093,1607.1,1606.9,1.24468]
[1744871503385,5.1979,1607.2,1607.1,1.24457]
[1744871503575,4.356,1607.2,1607.1,1.24457]
[1744871503982,4.356,1607.2,1607.1,3.66697]
[1744871510891,1.6663,1607.3,1607.2,1.24449]
[1744871511092,11.20808,1607.4,1607.3,1.24442]
[1744871511291,7.4958,1607.4,1607.3,1.24442]
[1744871511486,3.2078,1607.4,1607.3,2.11442]
[1744871512593,3.77628,1607.5,1607.4,1.24434]
[1744871512780,3.77628,1607.5,1607.4,2.82604]
[1744871513796,2.532,1607.5,1607.4,2.82604]
[1744871514391,3.77626,1607.5,1607.4,1.5817]
[1744871514590,1.24434,1607.4,1607.3,0.87]
[1744871514791,1.24442,1607.3,1607.2,1.5817]
[1744871514991,2.03582,1607.3,1607.1,2.05562]
[1744871515191,1.7502,1607.2,1607.1,2.05562]
[1744871515494,1.7502,1607.2,1606.8,11.40185833]
[1744871515495,1.24473,1606.9,1606.8,8.29002833]
[1744871515794,1.24473,1606.9,1606.8,9.91202833]
[1744871516099,1.24473,1606.9,1606.8,1.63133212]
[1744871516398,3.78633,1606.9,1606.8,1.63133212]
[1744871516597,3.78633,1606.9,1606.8,2.87613212]
[1744871517000,2.5416,1606.9,1606.8,2.87613212]
[1744871517297,3.78633,1606.9,1606.8,2.87613212]
[1744871517597,2.5416,1606.9,1606.8,2.87613212]
[1744871517798,3.78633,1606.9,1606.8,1.63133212]
[1744871517997,3.78633,1606.9,1606.8,0.00933212]
[1744871518295,2.5416,1606.9,1606.8,1.25413212]
[1744871518494,2.5416,1606.9,1606.8,2.92723212]
[1744871519097,3.78633,1606.9,1606.8,1.68243212]
[1744871519299,3.78633,1606.9,1606.8,0.00933212]
[1744871520298,2.5416,1606.9,1606.8,1.25413212]
[1744871520799,7.4948,1607.0,1606.9,1.24473]
[1744871521003,3.2078,1607.0,1606.9,1.24473]
[1744871521192,1.6889,1607.1,1607.0,1.24465]
[1744871521597,4.288,1607.2,1607.1,1.24457]
[1744871522202,1.6889,1607.3,1607.2,1.24449]
[1744871522404,4.288,1607.4,1607.3,1.24442]
[1744871522701,0.00933212,1607.7,1607.4,1.24431]
[1744871522896,1.6889,1607.5,1607.4,1.24431]
[1744871523302,0.00933212,1607.7,1607.6,1.24419]
[1744871523600,1.69823212,1607.7,1607.6,1.24419]
[1744871523804,2.94234212,1607.7,1607.5,1.2442]
[1744871524312,1.69823212,1607.7,1607.4,1.5967]
[1744871524505,2.94234212,1607.7,1607.5,1.24421]
[1744871525704,1.24426,1607.5,1607.4,1.5967]
[1744871526114,1.6119,1607.5,1607.4,2.84104]
[1744871530809,4.288,1607.6,1607.4,1.5967]
[1744871531006,1.71123212,1607.7,1607.6,1.24419]
[1744871531313,1.71123212,1607.7,1607.5,3.81381]
[1744871531814,1.71123212,1607.7,1607.6,1.753]
[1744871532511,2.95534212,1607.7,1607.6,1.753]
[1744871535116,2.95534212,1607.7,1607.5,2.06081]
[1744871535319,2.83699,1607.6,1607.5,0.8166]
[1744871535612,2.83699,1607.6,1607.5,2.4346]
[1744871536314,1.24426,1607.5,1607.3,2.03486]
[1744871536510,2.88884,1607.4,1607.3,2.5236]
[1744871537314,1.6445,1607.4,1607.3,3.76802]
[1744871538011,2.88884,1607.4,1607.3,1.7331]
[1744871538611,3.73884,1607.4,1607.2,1.24447]
[1744871538810,2.88892,1607.3,1607.2,1.7331]
[1744871539210,1.24449,1607.2,1607.1,4.8358]
[1744871539405,5.9249,1607.2,1606.9,1.6588]
[1744871539614,1.24473,1606.9,1606.8,7.44773212]
[1744871539908,1.24473,1606.9,1606.8,0.00933212]
[1744871539909,4.45253,1606.9,1606.8,0.00933212]
[1744871540114,8.70653,1606.9,1606.8,0.00933212]
[1744871540317,5.49873,1606.9,1606.8,0.00933212]
[1744871540522,7.16963,1606.9,1606.8,0.00933212]
[1744871541609,1.24504,1606.5,1606.4,8.28069621]
[1744871542115,4.45284,1606.5,1606.4,8.28069621]
[1744871542311,7.00504,1606.5,1606.4,8.28069621]
[1744871545508,1.24511,1606.4,1606.3,1.65282147]
[1744871545711,3.00001,1606.4,1606.3,1.65282147]
[1744871547914,3.00001,1606.4,1606.3,0.00622147]
[1744871554919,1.7549,1606.4,1606.3,1.25141147]
[1744871555227,3.2078,1606.5,1606.4,1.24511]
[1744871555614,4.45284,1606.5,1606.4,3.79481]
[1744871555918,4.45284,1606.5,1606.4,2.5497]
[1744871556815,6.06004,1606.5,1606.4,2.5497]
[1744871557016,2.85224,1606.5,1606.4,2.5497]
[1744871557521,6.06004,1606.5,1606.4,2.5497]
[1744871557724,1.24511,1606.4,1606.3,0.85792147]
[1744871558024,2.84101,1606.4,1606.3,0.00622147]
[1744871558722,2.84101,1606.4,1606.3,1.64182147]
[1744871559218,3.2078,1606.5,1606.3,1.64182147]
[1744871559219,0.00933212,1606.6,1606.5,1.24504]
[1744871559819,0.00933212,1606.6,1606.5,3.70304]
[1744871560011,7.4648,1607.1,1606.5,7.458]
[1744871560216,1.24465,1607.0,1606.8,1.24475]
[1744871560418,10.30534,1607.1,1606.9,4.54033]
[1744871560621,10.30534,1607.1,1607.0,1.6805]
[1744871561927,1.24477,1606.9,1606.7,2.92535]
[1744871562121,2.95639,1607.0,1606.8,2.92529]
[1744871562325,2.95639,1607.0,1606.9,1.6805]
[1744871563226,1.7117,1607.0,1606.9,1.6805]
[1744871563529,2.95635,1607.0,1606.9,1.6805]
[1744871565733,1.24473,1606.9,1606.7,2.94933]
[1744871566024,1.24473,1606.9,1606.8,2.9493]
[1744871566025,1.5824,1606.9,1606.8,2.9493]
[1744871566424,8.7094,1607.1,1606.9,1.24469]
[1744871566625,8.70938,1607.1,1606.9,3.73618]
[1744871566926,5.50158,1607.1,1606.9,3.73618]
[1744871567126,5.50158,1607.1,1607.0,1.6568]
[1744871567327,4.257,1607.1,1607.0,1.6568]
[1744871567625,5.50157,1607.1,1607.0,1.6568]
[1744871567821,7.19687,1607.1,1607.0,1.6568]
[1744871568122,1.24473,1606.9,1606.8,1.24475]
[1744871568424,1.24473,1606.9,1606.7,1.6568]
[1744871568425,4.45253,1606.9,1606.7,2.90163]
[1744871568627,4.225,1606.8,1606.6,7.5131]
[1744871568821,7.99213,1606.8,1606.6,10.41482]
[1744871569025,7.99213,1606.8,1606.7,1.6568]
[1744871569229,7.99213,1606.8,1606.7,2.90168]
[1744871569527,6.7473,1606.8,1606.7,2.90168]
[1744871569728,7.9921,1606.8,1606.7,1.6568]
[1744871570330,7.9921,1606.8,1606.7,2.90168]
[1744871570730,7.9921,1606.8,1606.7,1.6568]
[1744871572533,7.9921,1606.8,1606.7,2.90168]
[1744871573236,6.7473,1606.8,1606.7,2.90168]
[1744871573427,4.225,1606.8,1606.7,2.90168]
[1744871574928,0.1,1607.0,1606.9,1.24473]
[1744871575627,0.1,1607.0,1606.9,2.08573]
[1744871577939,7.11338,1607.1,1607.0,1.24465]
[1744871578137,7.11338,1607.1,1607.0,2.94415]
[1744871578838,5.8688,1607.1,1607.0,2.94415]
[1744871580247,7.11337,1607.1,1607.0,2.94415]
[1744871580440,5.8688,1607.1,1607.0,2.94415]
[1744871580929,5.8688,1607.1,1607.0,3.74525]
[1744871582638,0.00933212,1607.2,1607.1,1.24457]
[1744871582842,0.00933212,1607.2,1607.1,2.90597]
[1744871583246,1.24457,1607.1,1607.0,0.8011]
[1744871583434,2.89647,1607.1,1607.0,2.04575]
[1744871583946,1.6519,1607.1,1607.0,2.04575]
[1744871584241,2.89647,1607.1,1607.0,2.04575]
[1744871584435,2.89647,1607.1,1606.6,3.2078]
[1744871584436,1.24465,1607.0,1606.6,3.2078]
[1744871584630,2.4497,1607.0,1606.7,1.6614]
[1744871584835,2.4497,1607.0,1606.9,1.24473]
[1744871585033,9.52839212,1607.2,1607.0,1.24462]
[1744871585244,1.5926,1607.1,1607.0,1.24462]
[1744871586141,1.5926,1607.1,1607.0,2.99562]
[1744871586445,1.5926,1607.1,1607.0,3.50134217]
[1744871586744,1.5926,1607.1,1607.0,2.99562]
[1744871587438,4.23433212,1607.2,1607.1,1.24457]
[1744871587639,4.23433212,1607.2,1607.1,2.99557]
[1744871588339,4.23433212,1607.2,1606.9,1.6091]
[1744871588533,2.96059,1607.1,1606.9,3.2091]
[1744871588738,1.716,1607.0,1606.9,4.45376]
[1744871589846,1.716,1607.0,1606.8,9.0638]
[1744871590043,2.04633,1606.9,1606.8,5.856]
[1744871590647,0.8016,1606.9,1606.8,7.1008]
[1744871590846,3.76233,1606.9,1606.8,7.1008]
[1744871591239,2.5176,1606.9,1606.8,1.2448]
[1744871591937,3.76233,1606.9,1606.8,1.2448]
[1744871592241,3.76233,1606.9,1606.7,2.84483]
[1744871592449,1.6431,1606.8,1606.7,2.84483]
[1744871593146,2.8879,1606.8,1606.7,1.24483]
[1744871593339,3.7355,1606.8,1606.6,2.9056]
[1744871593542,1.6431,1606.7,1606.6,2.9056]
[1744871594050,1.6431,1606.7,1606.6,2.0903]
[1744871594546,2.88798,1606.7,1606.6,0.8454]
[1744871594745,2.88798,1606.7,1606.5,2.88331]
[1744871594942,2.09246,1606.8,1606.6,1.24496]
[1744871595353,0.8476,1606.8,1606.7,1.24488]
[1744871595753,7.4178,1607.1,1606.5,1.6383]
[1744871596051,1.24465,1607.0,1606.9,1.24468]
[1744871596251,9.0576,1607.1,1606.9,1.24468]
[1744871596450,10.30224,1607.1,1606.9,1.24468]
[1744871596651,10.30224,1607.1,1607.0,1.24465]
[1744871596842,9.0576,1607.1,1607.0,1.24465]
[1744871598254,0.00933212,1607.2,1607.1,1.24457]
[1744871599253,0.00933212,1607.2,1607.1,2.85207]
[1744871602355,0.00933212,1607.2,1607.1,2.50207]
[1744871602652,0.85243212,1607.2,1607.1,0.89457]
[1744871602954,1.24457,1607.1,1606.9,1.2447]
[1744871603153,0.8472,1607.1,1607.0,1.24465]
[1744871603357,2.09177,1607.1,1607.0,1.24465]
[1744871603656,2.09177,1607.1,1606.9,2.85508]
[1744871603847,2.09177,1607.1,1607.0,1.24465]
[1744871604356,2.09177,1607.1,1606.9,2.85507]
[1744871604556,2.09177,1607.1,1607.0,1.24465]
[1744871604753,1.24465,1607.0,1606.9,1.6104]
[1744871605253,2.09182,1607.1,1606.9,2.8551]
[1744871606059,2.09182,1607.1,1606.9,1.2447]
[1744871606260,1.24469,1607.0,1606.8,4.53766]
[1744871606559,1.24465,1607.0,1606.9,1.24473]
[1744871606757,1.24465,1607.0,1606.8,2.89075]
[1744871607161,1.24465,1607.0,1606.9,1.24473]
[1744871607463,1.24473,1606.9,1606.8,4.53767]
[1744871607658,1.24473,1606.9,1606.7,7.10083]
[1744871607959,1.24488,1606.7,1606.6,3.304]
[1744871608162,1.24488,1606.7,1606.6,1.6571]
[1744871608355,2.05578,1606.7,1606.6,1.6571]
[1744871608556,2.05578,1606.7,1606.5,11.17260621]
[1744871608953,4.45276,1606.6,1606.5,8.28069621]
[1744871609361,9.45276,1606.6,1606.5,8.28069621]
[1744871609955,1.24511,1606.4,1606.3,0.00622147]
[1744871610156,5.45511,1606.4,1606.3,0.00622147]
[1744871611464,8.66291,1606.4,1606.3,0.00622147]
[1744871612063,9.1588,1606.6,1606.5,1.24504]
[1744871612368,7.4178,1606.6,1606.5,1.24504]
[1744871612570,4.21,1606.6,1606.5,1.24504]
[1744871612767,5.45496,1606.6,1606.5,1.6067]
[1744871613268,1.24504,1606.5,1606.4,0.8458]
[1744871613564,2.88224,1606.5,1606.3,1.25136147]
[1744871613865,2.88224,1606.5,1606.4,1.6067]
[1744871614369,1.24511,1606.4,1606.3,0.00622147]
[1744871614567,2.88231,1606.4,1606.3,0.00622147]
[1744871614764,4.54151,1606.4,1606.3,0.00622147]
[1744871615275,3.2964,1606.4,1606.3,2.84921147]
[1744871616373,7.8842,1606.6,1606.4,1.2451]
[1744871616672,1.6186,1606.5,1606.4,2.8429]
[1744871618174,2.86364,1606.5,1606.4,2.8429]
[1744871618375,1.6186,1606.5,1606.4,2.84291]
[1744871619673,2.86364,1606.5,1606.4,1.5978]
[1744871620067,1.6186,1606.5,1606.4,2.84291]
[1744871620972,2.86364,1606.5,1606.4,1.5978]
[1744871621279,1.24511,1606.4,1606.3,1.25136147]
[1744871621461,1.6155,1606.4,1606.3,1.25136147]
[1744871621665,3.2078,1606.5,1606.4,1.24511]
[1744871621863,2.86054,1606.5,1606.3,2.97706147]
[1744871622377,1.6155,1606.5,1606.3,2.97706147]
[1744871622878,1.24511,1606.4,1606.3,0.00622147]
[1744871623273,2.86061,1606.4,1606.3,0.00622147]
[1744871627078,1.6155,1606.4,1606.3,1.25141147]
[1744871627280,4.45289,1606.5,1606.3,3.69111147]
[1744871627473,6.10949,1606.5,1606.3,3.69111147]
[1744871627782,2.90169,1606.5,1606.4,1.6006]
[1744871631881,1.24511,1606.4,1606.3,0.84282147]
[1744871632081,1.6172,1606.4,1606.3,2.08801147]
[1744871632684,2.86231,1606.4,1606.3,2.08801147]
[1744871633081,1.6172,1606.4,1606.3,2.08801147]
[1744871633682,1.6172,1606.4,1606.3,0.84282147]
[1744871633683,2.86231,1606.4,1606.3,0.84282147]
[1744871633880,6.07011,1606.4,1606.3,0.00622147]
[1744871635884,1.24535,1606.1,1605.9,1.24547]
[1744871636186,4.211,1606.1,1606.0,1.24542]
[1744871636578,4.211,1606.1,1606.0,2.89682]
[1744871639477,5.45635,1606.1,1606.0,1.6514]
[1744871639675,7.11705,1606.1,1606.0,2.89682]
[1744871639973,1.25465212,1606.2,1606.0,7.89682]
[1744871640173,0.00933212,1606.2,1606.1,2.97885]
[1744871643678,1.25460212,1606.2,1606.1,1.7335]
[1744871643879,3.63230212,1606.2,1606.0,1.24539]
[1744871644080,1.24537,1606.1,1605.9,4.57678211]
[1744871644286,2.82797,1606.1,1605.9,4.57678211]
[1744871644689,2.82797,1606.1,1605.9,4.57679211]
[1744871644879,2.82797,1606.1,1605.9,3.33133211]
[1744871644880,1.24542,1606.0,1605.9,3.33133211]
[1744871645187,2.82802,1606.0,1605.9,3.33133211]
[1744871646187,1.5826,1606.0,1605.9,4.57683211]
[1744871646377,2.82802,1606.0,1605.9,4.57683211]
[1744871646981,2.82802,1606.0,1605.9,3.33133211]
[1744871647287,2.82802,1606.0,1605.9,4.57683211]
[1744871647989,2.82802,1606.0,1605.9,3.33133211]
[1744871648987,6.03582,1606.0,1605.9,3.33133211]
[1744871649180,2.82802,1606.0,1605.9,2.53833211]
[1744871649381,6.03582,1606.0,1605.9,0.00933211]
[1744871659184,5.03582,1606.0,1605.9,1e-08]
[1744871665803,4.45322,1606.0,1605.9,1e-08]
[1744871666302,6.12542,1606.0,1605.9,1e-08]
[1744871667899,6.12542,1606.0,1605.9,1.71420001]
[1744871670708,1.24542,1606.0,1605.9,1.71420001]
[1744871670913,1.24542,1606.0,1605.9,2.57300001]
[1744871671207,4.45322,1606.0,1605.9,2.57300001]
[1744871671700,6.14402,1606.0,1605.9,2.57300001]
[1744871673209,6.14402,1606.0,1605.9,1e-08]
[1744871677310,17.24850592,1606.0,1605.9,1e-08]
[1744871677611,12.24850592,1606.0,1605.9,1e-08]
[1744871678413,12.24850557,1606.0,1605.9,1e-08]
[1744871678912,3.11404,1605.8,1605.0,11.39614621]
[1744871679115,1.24591,1605.4,1605.2,2.5577]
[1744871679312,1.24591,1605.4,1605.3,1.6284]
[1744871680012,1.24591,1605.4,1605.3,2.87437]
[1744871680213,1.24591,1605.4,1605.3,3.69627]
[1744871680415,1.24587,1605.5,1605.3,3.69627]
[1744871680615,1.24587,1605.5,1605.4,1.6284]
[1744871682017,1.24578,1605.6,1605.4,7.87426]
[1744871682218,1.24578,1605.6,1605.5,2.4694]
[1744871687727,3.77748,1605.6,1605.5,2.4694]
[1744871688425,4.62848,1605.6,1605.5,2.4694]
[1744871691128,4.62848,1605.6,1605.5,1.6284]
[1744871693636,1.24578,1605.6,1605.5,1.6284]
[1744871696238,1.24583,1605.5,1605.3,2.92806]
[1744871696531,1.24583,1605.5,1605.4,1.6984]
[1744871696738,1.24583,1605.5,1605.4,2.94429]
[1744871697033,1.24583,1605.5,1605.4,1.6984]
[1744871697536,1.24579,1605.6,1605.4,2.94427]
[1744871697738,1.24579,1605.6,1605.5,1.6276]
[1744871700538,1.24589,1605.4,1605.3,1.6821]
[1744871700730,1.24605,1605.2,1605.1,1.6461]
[1744871700932,4.45385,1605.2,1605.1,3.3991]
[1744871702441,4.45385,1605.2,1605.1,2.5209]
[1744871702635,6.12365,1605.2,1605.1,2.5209]
[1744871703841,6.12365,1605.2,1605.1,1.6461]
[1744871704431,3.2078,1605.2,1605.0,10.01969621]
[1744871704743,0.00933212,1605.3,1605.2,1.24605]
[1744871704932,0.00933212,1605.3,1605.2,2.86725]
[1744871714039,3.21713212,1605.3,1605.0,7.595]
[1744871714342,1.24612,1605.1,1605.0,7.595]
[1744871714537,1.24612,1605.1,1605.0,3.3943]
[1744871715541,5.45612,1605.1,1605.0,3.3943]
[1744871715740,1.24628,1604.9,1604.8,9.12139621]
[1744871715937,1.24628,1604.9,1604.8,11.65189621]
[1744871716133,4.56775,1605.0,1604.8,12.89822621]
[1744871716445,3.75835,1605.0,1604.9,2.97818]
[1744871716637,1.24625,1605.0,1604.9,2.97818]
[1744871717135,8.66398,1605.1,1604.9,2.97818]
[1744871717336,4.21,1605.1,1605.0,2.9781]
[1744871717534,4.21,1605.2,1605.1,1.24612]
[1744871717745,4.21,1605.2,1605.1,4.61732]
[1744871719549,5.45605,1605.2,1605.1,3.3712]
[1744871719741,7.04785,1605.2,1605.1,1.7319]
[1744871720334,1.24615,1605.1,1604.9,1.24623]
[1744871720538,1.2462,1605.0,1604.9,1.6149]
[1744871721247,2.838,1605.0,1604.9,1.6149]
[1744871721744,1.24628,1604.9,1604.8,7.5213]
[1744871721946,6.04588,1604.9,1604.8,7.5213]
[1744871722145,10.25688,1604.9,1604.8,5.856]
[1744871722346,1.24643,1604.7,1604.6,9.95159621]
[1744871722743,1.24643,1604.7,1604.6,3.284]
[1744871722948,2.88103,1604.7,1604.6,3.284]
[1744871723447,6.08883,1604.7,1604.6,1.6131]
[1744871723837,2.88103,1604.7,1604.6,1.6131]
[1744871724039,6.08883,1604.7,1604.6,1.6131]
[1744871724944,4.8424,1604.7,1604.6,1.6131]
[1744871725141,2.88103,1604.7,1604.6,1.6131]
[1744871725547,1.6346,1604.7,1604.6,1.6131]
[1744871725747,2.88103,1604.7,1604.6,1.6131]
[1744871727653,1.6346,1604.7,1604.6,1.6131]
[1744871727951,2.88103,1604.7,1604.6,1.6131]
[1744871728150,1.6696,1604.8,1604.6,2.85959]
[1744871728452,2.91597,1604.8,1604.7,0.8221]
[1744871728748,4.60837,1604.8,1604.7,2.4809]
[1744871731254,3.362,1604.8,1604.7,2.4809]
[1744871731549,3.362,1604.8,1604.7,3.3249]
[1744871731750,5.45735,1604.9,1604.7,4.57133]
[1744871731950,5.45728,1604.9,1604.8,1.6711]
[1744871732354,4.211,1604.9,1604.8,2.91746]
[1744871732754,4.211,1604.9,1604.8,1.6711]
[1744871733855,5.45728,1604.9,1604.8,1.6711]
[1744871734159,7.4188,1604.9,1604.5,1.24657]
[1744871734345,2.8387,1604.8,1604.5,3.4269]
[1744871734546,1.5923,1604.8,1604.7,1.24643]
[1744871735048,8.66514,1604.9,1604.7,1.24643]
[1744871735248,10.25744,1604.9,1604.8,1.7042]
[1744871737157,8.66514,1604.9,1604.8,3.76176]
[1744871739257,8.66514,1604.9,1604.8,2.5154]
[1744871740859,3.2078,1604.9,1604.8,3.76176]
[1744871741060,4.45408,1604.9,1604.8,3.76176]
[1744871741759,4.45408,1604.9,1604.8,2.5154]
[1744871742360,6.08618,1604.9,1604.8,1.7042]
[1744871743860,1.24637,1604.8,1604.6,2.07895]
[1744871744061,2.83957,1604.8,1604.7,1.6255]
[1744871745064,1.24636,1604.8,1604.7,2.87193]
[1744871745266,6.04731,1604.9,1604.8,1.24636]
[1744871745463,6.04731,1604.9,1604.8,2.87186]
[1744871745864,6.04731,1604.9,1604.8,1.6255]
[1744871751269,6.04731,1604.9,1604.8,2.87186]
[1744871751471,6.04731,1604.9,1604.8,1.6255]
[1744871751863,6.04731,1604.9,1604.8,2.4988]
[1744871752368,4.801,1604.9,1604.6,2.07898]
[1744871752567,2.91001,1604.8,1604.7,1.6024]
[1744871753967,1.24643,1604.7,1604.6,0.8325]
[1744871754166,4.54173,1604.7,1604.6,0.8325]
[1744871754362,4.54173,1604.7,1604.6,2.4349]
[1744871754963,4.54173,1604.7,1604.6,1.6024]
[1744871755559,4.54173,1604.7,1604.6,2.84891]
[1744871755762,5.4564,1604.8,1604.6,2.84891]
[1744871755964,5.4564,1604.8,1604.7,2.5684]
[1744871756171,7.0479,1604.8,1604.7,2.5684]
[1744871758971,7.0479,1604.8,1604.7,1.7266]
[1744871759376,5.8015,1604.8,1604.5,2.91253]
[1744871759572,1.24651,1604.6,1604.5,3.2856]
[1744871760072,3.85961,1604.6,1604.5,3.2856]
[1744871760279,2.6131,1604.6,1604.5,3.2856]
[1744871760473,0.8761,1604.6,1604.5,4.53219]
[1744871760677,2.12261,1604.6,1604.5,3.2856]
[1744871760974,2.12261,1604.6,1604.5,4.53219]
[1744871760975,0.8761,1604.6,1604.5,4.53219]
[1744871761174,2.12261,1604.6,1604.5,4.53219]
[1744871761576,0.8761,1604.6,1604.5,4.53219]
[1744871761971,2.12261,1604.6,1604.5,4.53219]
[1744871762175,0.8761,1604.6,1604.5,4.53219]
[1744871762674,5.45638,1604.8,1604.6,1.24644]
[1744871762866,5.45638,1604.8,1604.6,2.88944]
[1744871763271,5.45638,1604.8,1604.7,1.643]